bitfinex-derivatives/quotes_SOLF0:USTF0_20250413
["timestamp","ask_amount","ask_price","bid_price","bid_amount"]
[1744566292688,35.437132,131.38,131.3,7.617]
[1744566293083,0.05685152,131.35,131.33,0.05378343]
[1744566293587,7.6151,131.34,131.33,0.05378343]
[1744566295684,0.05685152,131.35,131.33,0.05378343]
[1744566296783,60.44,131.4,131.33,0.05378343]
[1744566297784,7.67022751,131.38,131.34,7.6151]
[1744566297988,0.05692751,131.38,131.34,7.6151]
[1744566298288,7.67002751,131.38,131.35,0.05751494]
[1744566298480,0.05692751,131.38,131.35,0.05751494]
[1744566298988,0.05692751,131.38,131.35,7.67201494]
[1744566299687,0.05692751,131.38,131.37,7.6134]
[1744566299888,0.05692751,131.38,131.35,0.05751494]
[1744566300891,7.6136,131.37,131.35,0.05751494]
[1744566301088,0.05692751,131.38,131.35,0.05751494]
[1744566301891,35.49405951,131.38,131.35,0.05751494]
[1744566302290,7.614,131.36,131.35,0.05751494]
[1744566302591,35.49405951,131.38,131.27,4.2103]
[1744566302785,2.1264,131.37,131.28,7.6181]
[1744566302992,2.1264,131.37,131.27,4.2103]
[1744566303190,605.2064,131.37,131.27,4.2103]
[1744566303390,605.2064,131.37,131.29,7.618]
[1744566303591,0.04845532,131.33,131.31,0.05607599]
[1744566305590,7.66435532,131.33,131.31,0.05607599]
[1744566305784,0.04845532,131.33,131.31,0.05607599]
[1744566306293,7.6163,131.32,131.31,0.05607599]
[1744566307495,7.6182,131.29,131.27,4.2103]
[1744566307793,82.29256102,131.34,131.25,9.7078]
[1744566307993,7.6197,131.27,131.22,1.9998]
[1744566308189,21.83256102,131.31,131.23,10.52923989]
[1744566308394,21.83256102,131.31,131.24,7.6207]
[1744566308693,7.6192,131.27,131.26,0.05497553]
[1744566309696,81.99256102,131.28,131.2,34.33408213]
[1744566309890,81.99256102,131.28,131.21,7.01426966]
[1744566310094,7.6212,131.24,131.2,34.33408213]
[1744566310394,60.16,131.28,131.2,34.33408213]
[1744566310594,7.6194,131.27,131.21,10.53933402]
[1744566310794,0.05638491,131.25,131.24,7.6209]
[1744566310996,0.05638491,131.25,131.23,0.05806311]
[1744566313795,7.6209,131.24,131.23,0.05806311]
[1744566313995,0.05638491,131.25,131.23,0.05806311]
[1744566316198,0.05638491,131.25,131.24,7.6209]
[1744566316994,0.05638491,131.25,131.23,7.67936311]
[1744566317400,0.05638491,131.25,131.23,0.05806311]
[1744566317595,0.05638491,131.25,131.24,7.6209]
[1744566319104,2.072,131.32,131.28,7.6183]
[1744566319305,58.52,131.35,131.24,4.1072]
[1744566319499,58.52,131.35,131.25,1.9955]
[1744566320101,7.616,131.33,131.3,7.6174]
[1744566320303,0.04831952,131.31,131.3,7.6174]
[1744566320503,7.6175,131.3,131.29,0.05223721]
[1744566320805,0.04831952,131.31,131.29,0.05223721]
[1744566321706,7.6175,131.3,131.29,0.05223721]
[1744566321910,0.04831952,131.31,131.29,0.05223721]
[1744566322109,7.6175,131.3,131.29,0.05223721]
[1744566323606,0.04831952,131.31,131.29,0.05223721]
[1744566325011,0.04831952,131.31,131.3,7.6175]
[1744566325411,6.1853,131.39,131.3,6.99641814]
[1744566325611,64.7053,131.39,131.3,1.9894]
[1744566326106,7.613,131.38,131.34,7.6151]
[1744566326407,4.0885,131.39,131.31,2.0142]
[1744566326607,0.05687611,131.37,131.34,0.0576276]
[1744566326807,82.45106102,131.38,131.26,58.52]
[1744566327109,0.05007931,131.37,131.34,0.05164254]
[1744566327309,7.6153,131.34,131.3,7.6171]
[1744566327511,0.05403712,131.37,131.26,58.52]
[1744566327711,82.45106102,131.38,131.31,0.05570772]
[1744566327905,0.05833465,131.33,131.31,0.05570772]
[1744566328108,82.45106102,131.38,131.31,0.05570772]
[1744566328508,7.6161,131.33,131.31,0.05570772]
[1744566328708,82.45106102,131.38,131.31,0.05570772]
[1744566328908,7.66487084,131.33,131.31,0.05570772]
[1744566329115,7.6158,131.33,131.31,0.05570772]
[1744566329310,0.05172905,131.33,131.31,0.05570772]
[1744566330113,7.6163,131.32,131.31,0.05570772]
[1744566330711,7.66802905,131.33,131.31,0.05570772]
[1744566331011,0.05172905,131.33,131.31,0.05570772]
[1744566331215,0.05172905,131.33,131.32,7.6163]
[1744566332209,7.6138,131.37,131.34,7.6148]
[1744566332413,66.113,131.38,131.28,80.33256102]
[1744566332617,58.5,131.38,131.29,10.51725112]
[1744566332816,2.0687,131.41,131.3,10.51725112]
[1744566333014,7.6125,131.39,131.31,10.51725112]
[1744566333211,0.05078161,131.37,131.36,7.6136]
[1744566333409,2.0687,131.41,131.32,4.1933]
[1744566333715,0.04982827,131.38,131.37,7.6134]
[1744566334016,58.5,131.42,131.37,7.6134]
[1744566334319,0.05744982,131.39,131.37,7.6134]
[1744566335018,0.05744982,131.39,131.36,0.04948118]
[1744566335522,7.6132,131.38,131.36,0.04948118]
[1744566335719,0.05744982,131.39,131.36,0.04948118]
[1744566337126,0.05744982,131.39,131.38,7.6128]
[1744566338219,58.5,131.46,131.38,14.59782304]
[1744566338424,7.6086,131.46,131.39,11.09616584]
[1744566338625,603.18,131.48,131.41,7.6107]
[1744566339024,603.18,131.48,131.39,4.1193]
[1744566339226,0.0533478,131.46,131.43,0.05595134]
[1744566339724,0.0533478,131.46,131.44,7.6089]
[1744566340025,0.0533478,131.46,131.43,0.05595134]
[1744566340723,7.6088,131.45,131.43,0.05595134]
[1744566341026,0.0533478,131.46,131.43,0.05595134]
[1744566341526,0.0533478,131.46,131.44,7.6093]
[1744566341826,0.0533478,131.46,131.43,0.05595134]
[1744566343929,7.6092,131.45,131.43,0.05595134]
[1744566344426,7.6616478,131.46,131.43,0.05595134]
[1744566344626,0.0533478,131.46,131.43,0.05595134]
[1744566345123,0.0533478,131.46,131.43,7.66575134]
[1744566345324,360.0,131.64,131.45,21.83256102]
[1744566345531,21.83256102,131.63,131.48,21.83256102]
[1744566346330,7.6016,131.58,131.53,7.604]
[1744566346532,0.04969857,131.57,131.54,0.05061383]
[1744566346927,7.6028,131.56,131.54,0.05061383]
[1744566348129,7.603,131.55,131.54,0.05061383]
[1744566352336,0.04969857,131.57,131.54,0.05061383]
[1744566352637,0.04969857,131.57,131.55,7.6026]
[1744566353237,0.04969857,131.57,131.56,7.6024]
[1744566353438,0.04969857,131.57,131.54,0.05061383]
[1744566354327,7.5991,131.62,131.58,7.6009]
[1744566354529,80.39256102,131.66,131.55,2.0494]
[1744566354940,7.6006,131.6,131.56,7.6023]
[1744566355632,7.65792663,131.59,131.57,0.05775091]
[1744566355834,80.39256102,131.66,131.55,9.6523]
[1744566356035,0.05709671,131.59,131.57,0.04982135]
[1744566356233,7.6006,131.6,131.56,7.6023]
[1744566356432,0.04938495,131.59,131.57,0.05657446]
[1744566358942,0.04938495,131.59,131.57,7.65837446]
[1744566359142,0.04938495,131.59,131.57,0.05657446]
[1744566359343,7.6013,131.58,131.57,0.05657446]
[1744566359543,21.88194597,131.59,131.52,7.6047]
[1744566359740,27.99716102,131.59,131.52,7.6047]
[1744566359937,21.83256102,131.56,131.46,62.6448]
[1744566360142,21.83256102,131.56,131.46,4.1048]
[1744566360542,21.83256102,131.56,131.42,34.33408213]
[1744566360543,21.83256102,131.5,131.42,34.33408213]
[1744566360840,60.6032,131.49,131.45,0.05402884]
[1744566361045,0.05851831,131.47,131.45,0.05402884]
[1744566361542,360.0,131.56,131.42,34.33408213]
[1744566361745,58.54,131.56,131.43,2.0908]
[1744566361944,7.6049,131.52,131.47,7.607]
[1744566362446,58.54,131.56,131.43,2.0908]
[1744566362647,58.54,131.56,131.47,21.83256102]
[1744566362945,0.04941858,131.51,131.48,2.15471867]
[1744566363147,58.54,131.56,131.48,2.1047]
[1744566363344,58.54,131.56,131.49,1.9886]
[1744566363849,602.24,131.59,131.49,1.9886]
[1744566364352,0.05527994,131.55,131.53,0.05856009]
[1744566364656,60.3,131.61,131.5,21.83256102]
[1744566364947,0.0557215,131.55,131.54,7.6036]
[1744566365147,60.3,131.61,131.51,2.0989]
[1744566365349,0.05295289,131.56,131.53,0.05630216]
[1744566365648,0.05295289,131.56,131.51,2.0989]
[1744566365948,0.05295289,131.56,131.53,0.05720989]
[1744566366148,0.05295289,131.56,131.55,7.603]
[1744566366342,0.05295289,131.56,131.53,0.05720989]
[1744566367651,0.05295289,131.56,131.54,7.6032]
[1744566367851,0.05295289,131.56,131.53,0.05720989]
[1744566369646,0.05295289,131.56,131.54,7.6035]
[1744566370752,0.05295289,131.56,131.53,7.66090989]
[1744566371049,0.05295289,131.56,131.53,0.05720989]
[1744566371349,0.05295289,131.56,131.53,7.66120989]
[1744566371549,0.05295289,131.56,131.53,0.05720989]
[1744566372651,7.6034,131.55,131.53,0.05720989]
[1744566372851,0.05295289,131.56,131.53,0.05720989]
[1744566373151,0.05295289,131.56,131.53,7.66090989]
[1744566373453,0.05295289,131.56,131.53,0.05720989]
[1744566373650,0.05295289,131.56,131.53,7.66120989]
[1744566374253,0.05295289,131.56,131.53,0.05720989]
[1744566375154,0.05295289,131.56,131.55,7.603]
[1744566375557,7.5987,131.63,131.59,7.6003]
[1744566375858,66.4065,131.66,131.54,4.0975]
[1744566376356,602.2,131.72,131.56,21.83256102]
[1744566376357,60.28,131.71,131.56,21.83256102]
[1744566376552,7.5953,131.69,131.59,21.83256102]
[1744566376753,0.05278232,131.65,131.62,0.05138526]
[1744566376953,66.4065,131.71,131.59,21.83256102]
[1744566377152,0.0523,131.65,131.62,0.04851816]
[1744566377353,66.4065,131.71,131.59,21.83256102]
[1744566377553,0.05334231,131.65,131.62,0.05310225]
[1744566377753,0.05334231,131.65,131.64,7.5978]
[1744566378056,0.05345199,131.65,131.63,0.04980996]
[1744566378454,0.05345199,131.65,131.64,7.5978]
[1744566378655,0.05345199,131.65,131.63,0.04980996]
[1744566381554,7.65065199,131.65,131.63,0.04980996]
[1744566381756,0.05345199,131.65,131.63,0.04980996]
[1744566383059,0.05345199,131.65,131.63,7.64810996]
[1744566383257,0.05345199,131.65,131.63,0.04980996]
[1744566384168,61.91345199,131.65,131.63,0.04980996]
[1744566384659,7.5988,131.63,131.59,7.6005]
[1744566385458,61.86,131.65,131.58,1.9714]
[1744566385656,61.86,131.65,131.59,3.48011681]
[1744566385859,0.05555322,131.63,131.6,0.05670944]
[1744566386262,0.05555322,131.63,131.62,7.5997]
[1744566386761,7.65505322,131.63,131.6,0.05670944]
[1744566386962,0.05555322,131.63,131.6,0.05670944]
[1744566388360,7.6001,131.62,131.6,0.05670944]
[1744566391165,7.6003,131.61,131.6,0.05670944]
[1744566392068,7.5999,131.62,131.6,0.05670944]
[1744566392268,0.05555322,131.63,131.6,0.05670944]
[1744566392668,21.83256102,131.62,131.51,61.86]
[1744566392867,21.83256102,131.62,131.5,12.50622053]
[1744566393066,7.6047,131.54,131.5,12.50622053]
[1744566393266,7.6047,131.54,131.5,10.54362053]
[1744566393470,60.18,131.57,131.5,10.54362053]
[1744566393660,7.6047,131.54,131.5,18.14992053]
[1744566393862,7.6047,131.54,131.52,0.05031363]
[1744566395474,7.6049,131.53,131.52,0.05031363]
[1744566395679,0.04924125,131.55,131.52,0.05031363]
[1744566397370,64.4848,131.62,131.53,21.83256102]
[1744566397572,62.3422,131.62,131.54,4.05]
[1744566397770,62.3422,131.62,131.56,7.6029]
[1744566398474,7.65216604,131.6,131.58,0.05684382]
[1744566398675,0.05086604,131.6,131.58,0.05684382]
[1744566399174,7.6014,131.59,131.58,0.05684382]
[1744566399978,7.6027,131.57,131.54,7.6041]
[1744566400173,7.6027,131.57,131.5,21.83256102]
[1744566400479,1.9586,131.61,131.5,21.83256102]
[1744566400777,7.602,131.59,131.55,7.6034]
[1744566401278,0.05626281,131.58,131.56,7.65260488]
[1744566401479,0.05626281,131.58,131.56,7.6028]
[1744566401672,0.05626281,131.58,131.56,7.65498349]
[1744566401879,0.05626281,131.58,131.57,7.6026]
[1744566402177,60.2,131.62,131.56,21.88474451]
[1744566402378,3.9983,131.66,131.61,7.6003]
[1744566403081,7.5986,131.64,131.61,7.6003]
[1744566403282,7.5986,131.64,131.62,0.05475755]
[1744566404479,7.65193119,131.65,131.62,7.65435755]
[1744566404683,0.05373119,131.65,131.62,0.05475755]
[1744566405077,0.05373119,131.65,131.64,7.5986]
[1744566406487,0.05373119,131.65,131.62,0.05475755]
[1744566407686,2.17153119,131.65,131.62,0.05475755]
[1744566408285,7.5991,131.63,131.62,0.05475755]
[1744566408787,2.17153119,131.65,131.58,7.6019]
[1744566409088,2.1178,131.65,131.57,7.6024]
[1744566409287,7.6007,131.61,131.57,7.6024]
[1744566409588,7.6007,131.61,131.55,2.0068]
[1744566409787,0.0562585,131.6,131.58,0.05024191]
[1744566410086,2.1178,131.65,131.58,0.05024191]
[1744566410285,0.05635584,131.6,131.58,0.05024191]
[1744566410485,7.6014,131.59,131.58,0.05024191]
[1744566410989,0.05264986,131.6,131.58,0.05024191]
[1744566410990,7.65374986,131.6,131.58,0.05024191]
[1744566411886,7.6014,131.59,131.58,0.05024191]
[1744566412386,0.05264986,131.6,131.58,0.05024191]
[1744566412888,7.6014,131.59,131.58,0.05024191]
[1744566414085,0.05264986,131.6,131.58,0.05024191]
[1744566414781,7.6014,131.59,131.58,0.05024191]
[1744566414980,0.05264986,131.6,131.58,0.05024191]
[1744566415587,7.65404986,131.6,131.58,0.05024191]
[1744566416380,7.6014,131.59,131.58,0.05024191]
[1744566416581,0.05264986,131.6,131.5,6.1369]
[1744566416889,58.52,131.61,131.51,6.95471347]
[1744566417188,58.52,131.61,131.53,7.6044]
[1744566417792,7.603,131.57,131.56,0.05781662]
[1744566418991,0.05329065,131.58,131.56,0.05781662]
[1744566419694,0.05329065,131.58,131.57,7.6026]
[1744566422395,0.05329065,131.58,131.56,0.05781662]
[1744566423294,0.05329065,131.58,131.51,7.6058]
[1744566423497,2.0981,131.59,131.51,7.6058]
[1744566423697,21.83256102,131.58,131.46,8.58352053]
[1744566423889,23.79036102,131.58,131.48,7.6075]
[1744566424396,7.6061,131.51,131.48,7.6075]
[1744566424697,55.26,131.54,131.49,8.58352053]
[1744566425001,7.6066,131.5,131.49,8.58352053]
[1744566425302,21.83256102,131.52,131.48,94.41872586]
[1744566425487,7.6072,131.49,131.48,94.41872586]
[1744566425797,62.8672,131.49,131.48,87.87922586]
[1744566426293,62.8672,131.49,131.48,75.23722586]
[1744566426493,77.09256102,131.49,131.46,197.21827995]
[1744566426699,77.09256102,131.49,131.45,173.01159061]
[1744566426890,7.6095,131.45,131.44,216.26448826]
[1744566427094,7.6095,131.45,131.44,127.62412961]
[1744566427395,7.6095,131.45,131.44,12.22115752]
[1744566427994,7.6101,131.44,131.43,0.05370287]
[1744566428292,62.8701,131.44,131.43,0.05370287]
[1744566430098,7.6132,131.39,131.33,26.05148389]
[1744566430295,55.28,131.39,131.33,4.0975]
[1744566430500,55.28,131.39,131.34,7.6157]
[1744566431197,55.28,131.39,131.33,11.7138]
[1744566431391,0.05777544,131.38,131.35,0.05119852]
[1744566432193,7.6147,131.36,131.35,0.05119852]
[1744566432398,0.05777544,131.38,131.35,0.05119852]
[1744566432593,0.05777544,131.38,131.27,6.1097]
[1744566432793,0.05777544,131.38,131.29,21.83256102]
[1744566432995,126.56645717,131.39,131.29,21.83256102]
[1744566433801,0.05189733,131.35,131.33,0.03930703]
[1744566434098,7.66729733,131.35,131.33,0.03930703]
[1744566434393,0.05189733,131.35,131.33,0.03930703]
[1744566434698,7.6159,131.34,131.33,0.03930703]
[1744566435398,7.6159,131.34,131.29,7.6188]
[1744566435699,7.6155,131.35,131.27,6.1097]
[1744566436000,71.28645717,131.38,131.3,7.6179]
[1744566436200,71.28645717,131.38,131.27,6.1097]
[1744566436501,71.28645717,131.37,131.27,6.1097]
[1744566436693,0.05649077,131.34,131.27,6.1097]
[1744566437298,0.05649077,131.34,131.31,7.6176]
[1744566437601,0.05649077,131.34,131.29,21.83256102]
[1744566437802,71.28645717,131.37,131.29,21.83256102]
[1744566438703,71.28645717,131.37,131.32,21.83256102]
[1744566438892,0.05001914,131.34,131.32,21.88167075]
[1744566439097,126.56645717,131.39,131.32,21.88167075]
[1744566439804,126.56645717,131.39,131.38,7.6136]
[1744566440400,51.93065717,131.39,131.38,7.6136]
[1744566440604,48.70465717,131.39,131.38,7.6136]
[1744566441000,0.05559287,131.4,131.39,7.613]
[1744566441206,59.7532,131.48,131.38,21.83256102]
[1744566441400,63.3632,131.48,131.38,21.83256102]
[1744566441708,61.408,131.48,131.44,7.6097]
[1744566441906,53.8,131.48,131.38,21.83256102]
[1744566442204,53.8,131.48,131.41,7.6118]
[1744566442402,7.66328464,131.44,131.42,0.05450634]
[1744566442799,0.05318464,131.44,131.42,0.05450634]
[1744566443004,7.6107,131.43,131.42,0.05450634]
[1744566443603,0.05318464,131.44,131.42,0.05450634]
[1744566444606,7.6107,131.43,131.42,0.05450634]
[1744566444803,0.05318464,131.44,131.42,0.05450634]
[1744566446607,0.05318464,131.44,131.43,7.6107]
[1744566447109,61.408,131.48,131.44,7.6097]
[1744566447408,53.8,131.48,131.4,21.83256102]
[1744566447609,53.8,131.48,131.45,7.6091]
[1744566447809,53.8,131.48,131.4,21.83256102]
[1744566448108,0.05427086,131.45,131.43,0.05617213]
[1744566448308,602.92,131.51,131.4,21.83256102]
[1744566448508,0.05422374,131.45,131.43,0.05682261]
[1744566449805,0.05422374,131.45,131.42,7.6107]
[1744566450002,0.05422374,131.45,131.4,21.83256102]
[1744566450610,0.05422374,131.45,131.44,7.6101]
[1744566450912,0.05422374,131.45,131.44,7.54188338]
[1744566451110,0.05422374,131.45,131.43,7.65978953]
[1744566451409,0.05422374,131.45,131.43,0.04928953]
[1744566451712,0.05422374,131.45,131.43,7.65968953]
[1744566452205,0.05422374,131.45,131.43,0.04928953]
[1744566452711,0.05422374,131.45,131.43,7.65988953]
[1744566452910,0.05422374,131.45,131.43,0.04928953]
[1744566453307,0.05422374,131.45,131.43,7.65948953]
[1744566456014,0.05422374,131.45,131.43,0.04928953]
[1744566456514,7.66382374,131.45,131.43,0.04928953]
[1744566456815,0.05422374,131.45,131.43,7.65998953]
[1744566457615,0.05422374,131.45,131.43,0.04928953]
[1744566458112,7.6101,131.44,131.43,0.04928953]
[1744566459613,28.81941842,131.44,131.43,0.04928953]
[1744566459912,7.6113,131.43,131.39,7.6129]
[1744566460112,7.6113,131.43,131.4,7.6121]
[1744566460811,7.6113,131.42,131.39,7.6128]
[1744566461114,7.66551839,131.42,131.39,7.67142848]
[1744566461510,0.05421839,131.42,131.4,7.6124]
[1744566461717,0.05421839,131.42,131.39,0.05862848]
[1744566463015,50.87421839,131.42,131.39,0.05862848]
[1744566463318,7.6128,131.4,131.37,7.6139]
[1744566463514,143.47719602,131.42,131.34,1.9457]
[1744566463819,7.6143,131.37,131.34,7.6156]
[1744566464014,143.42297763,131.42,131.31,6.0628]
[1744566464315,92.60297763,131.41,131.4,7.6124]
[1744566464719,92.60297763,131.41,131.35,21.83256102]
[1744566464920,92.60297763,131.41,131.39,7.6635468]
[1744566465119,92.65192802,131.41,131.39,7.6635468]
[1744566465419,92.65192802,131.41,131.39,0.0505468]
[1744566466018,0.04895039,131.41,131.39,7.6632468]
[1744566466525,0.04895039,131.41,131.39,0.0505468]
[1744566469124,0.04895039,131.41,131.4,7.6124]
[1744566469324,71.39365921,131.43,131.39,0.0505468]
[1744566469526,71.39365921,131.43,131.39,3.9382468]
[1744566470025,71.39365921,131.43,131.4,7.6121]
[1744566470431,71.44524295,131.43,131.39,3.9382468]
[1744566470625,71.44524295,131.43,131.4,7.6123]
[1744566471327,0.05158374,131.43,131.4,7.6123]
[1744566471526,0.05158374,131.43,131.39,0.0505468]
[1744566472129,0.05158374,131.43,131.42,7.6113]
[1744566472429,0.05158374,131.43,131.39,0.0505468]
[1744566472623,0.05158374,131.43,131.42,7.6113]
[1744566472824,0.05158374,131.43,131.39,0.0505468]
[1744566473831,0.05158374,131.43,131.42,7.6113]
[1744566474226,0.05158374,131.43,131.39,0.0505468]
[1744566474425,0.05158374,131.43,131.41,7.6115]
[1744566474626,0.05158374,131.43,131.39,0.0505468]
[1744566474924,0.05158374,131.43,131.41,7.6113]
[1744566475127,0.05158374,131.43,131.39,0.0505468]
[1744566476029,0.05158374,131.43,131.4,7.612]
[1744566476229,0.05158374,131.43,131.39,0.0505468]
[1744566476626,0.05158374,131.43,131.42,7.6113]
[1744566478533,71.39365921,131.45,131.44,7.6101]
[1744566478827,71.39365921,131.45,131.44,21.22339229]
[1744566479033,71.39365921,131.48,131.44,13.61329229]
[1744566479432,71.39365921,131.48,131.45,7.6092]
[1744566479633,0.0561043,131.47,131.45,7.66107417]
[1744566480534,0.0561043,131.47,131.46,7.609]
[1744566485544,0.0561043,131.47,131.45,7.66117417]
[1744566485950,0.0561043,131.47,131.45,0.05187417]
[1744566486542,7.6647043,131.47,131.45,0.05187417]
[1744566487349,0.0561043,131.47,131.46,13.61329229]
[1744566487547,71.39365921,131.52,131.46,24.13934379]
[1744566487749,71.39365921,131.52,131.49,13.61329229]
[1744566488045,71.39365921,131.5,131.45,13.61329229]
[1744566488241,71.39365921,131.5,131.47,13.61329229]
[1744566488441,71.39365921,131.5,131.48,7.00063709]
[1744566488649,71.44625971,131.5,131.47,13.67096936]
[1744566488848,71.44625971,131.5,131.48,6.9997417]
[1744566489048,71.44625971,131.5,131.49,7.6072]
[1744566489346,71.44625971,131.5,131.49,28.21942305]
[1744566489548,71.44625971,131.5,131.49,21.22049229]
[1744566490247,107.33809733,131.51,131.5,7.6066]
[1744566490446,1e-08,131.53,131.5,10.50441791]
[1744566490646,155.19388811,131.54,131.52,13.61329229]
[1744566490850,155.19388811,131.54,131.5,13.61329229]
[1744566491149,123.99673072,131.58,131.5,13.61329229]
[1744566491448,0.05196346,131.55,131.53,7.6525116]
[1744566491648,0.05196346,131.55,131.53,0.0480116]
[1744566492243,47.91196346,131.55,131.46,13.61329229]
[1744566492444,47.86,131.55,131.45,47.86]
[1744566492646,7.6059,131.52,131.48,7.6077]
[1744566492947,47.86,131.55,131.41,4.0905]
[1744566492948,13.61329229,131.5,131.41,4.0905]
[1744566493148,49.8599,131.49,131.42,6.98844933]
[1744566493345,0.05760578,131.47,131.44,0.0520321]
[1744566493749,7.6095,131.45,131.44,0.0520321]
[1744566494051,0.05760578,131.47,131.4,7.6122]
[1744566494451,13.61329229,131.48,131.39,7.6128]
[1744566494846,7.611,131.43,131.39,7.6128]
[1744566495253,0.0543618,131.42,131.4,7.66902972]
[1744566495446,55.4705,131.44,131.4,7.6123]
[1744566495648,0.05010544,131.42,131.4,7.66434858]
[1744566496452,0.05010544,131.42,131.41,7.6119]
[1744566497248,0.05010544,131.42,131.4,7.66434858]
[1744566497657,0.05010544,131.42,131.4,0.05204858]
[1744566498255,0.05010544,131.42,131.4,7.66414858]
[1744566498454,0.05010544,131.42,131.4,0.05204858]
[1744566498855,0.05010544,131.42,131.4,7.66424858]
[1744566499256,0.05010544,131.42,131.4,0.05204858]
[1744566500155,7.66150544,131.42,131.4,0.05204858]
[1744566500357,0.05010544,131.42,131.4,0.05204858]
[1744566501257,0.05010544,131.42,131.4,7.66444858]
[1744566502355,7.66140544,131.42,131.4,0.05204858]
[1744566503462,7.6119,131.41,131.4,0.05204858]
[1744566503657,0.05010544,131.42,131.34,3.9888]
[1744566503853,4.077,131.43,131.34,3.9888]
[1744566504158,7.6121,131.41,131.34,3.9888]
[1744566504760,0.05091037,131.39,131.37,7.6142]
[1744566505155,0.05091037,131.39,131.38,7.6136]
[1744566506154,47.88,131.49,131.38,18.1158176]
[1744566506350,7.609,131.46,131.39,32.2848677]
[1744566506558,7.609,131.46,131.4,6.98477187]
[1744566506758,7.609,131.46,131.39,21.7890501]
[1744566506964,7.6086,131.47,131.43,7.6103]
[1744566507154,47.88,131.49,131.39,21.7890501]
[1744566507350,0.05830304,131.46,131.44,0.05460175]
[1744566507558,0.05830304,131.46,131.44,7.66440175]
[1744566507862,0.05830304,131.46,131.44,0.05460175]
[1744566509964,0.05830304,131.46,131.44,7.66470175]
[1744566510159,0.05830304,131.46,131.44,0.05460175]
[1744566511357,0.05830304,131.46,131.44,7.66460175]
[1744566511562,0.05830304,131.46,131.44,0.05460175]
[1744566511763,7.66740304,131.46,131.44,0.05460175]
[1744566512559,7.6095,131.45,131.44,0.05460175]
[1744566513164,7.6105,131.44,131.4,7.612]
[1744566513364,7.6105,131.44,131.38,1.9446]
[1744566513764,7.6105,131.44,131.41,7.6118]
[1744566514270,7.6666099,131.44,131.41,7.66809576]
[1744566514766,0.0561099,131.44,131.41,7.66809576]
[1744566514973,0.0561099,131.44,131.43,7.6107]
[1744566515158,0.0561099,131.44,131.41,0.05629576]
[1744566515360,0.0561099,131.44,131.42,7.6109]
[1744566515563,0.0561099,131.44,131.41,0.05629576]
[1744566516161,0.0561099,131.44,131.42,6.99396994]
[1744566516364,47.88,131.49,131.43,20.60315709]
[1744566516566,47.88,131.49,131.43,13.61071322]
[1744566516869,47.88,131.49,131.39,13.61071322]
[1744566517066,47.88,131.49,131.4,10.50884787]
[1744566517368,47.88,131.49,131.41,7.6116]
[1744566517570,0.05504962,131.46,131.43,0.04911935]
[1744566517960,0.05504962,131.46,131.34,21.77801137]
[1744566518163,47.88,131.49,131.35,10.52147985]
[1744566518164,21.77801137,131.45,131.35,10.52147985]
[1744566518363,51.2469,131.44,131.36,10.52337185]
[1744566518666,7.6119,131.41,131.38,7.6133]
[1744566519066,0.05849333,131.41,131.38,0.05788851]
[1744566520571,0.05849333,131.41,131.4,7.6124]
[1744566520967,0.05849333,131.41,131.38,0.05788851]
[1744566521172,0.05849333,131.41,131.39,7.6129]
[1744566522168,0.05849333,131.41,131.4,7.6124]
[1744566525472,0.05849333,131.41,131.4,14.61007266]
[1744566526069,602.72,131.51,131.45,7.6095]
[1744566526569,602.72,131.51,131.4,21.77801137]
[1744566526775,7.6074,131.49,131.41,10.51506868]
[1744566526972,602.72,131.51,131.42,10.51449026]
[1744566527171,610.3262,131.51,131.47,7.6083]
[1744566527573,2.12239194,131.5,131.47,7.6083]
[1744566527982,2.12239194,131.5,131.46,7.6087]
[1744566528178,2.12239194,131.5,131.45,0.05622795]
[1744566528878,9.72949194,131.5,131.46,7.6087]
[1744566529074,2.12239194,131.5,131.45,0.05622795]
[1744566529774,21.77801137,131.49,131.39,47.08]
[1744566529978,21.77801137,131.49,131.36,2.0398]
[1744566530172,21.77801137,131.46,131.37,7.0028695]
[1744566530374,7.6123,131.41,131.37,7.6139]
[1744566530573,49.0551,131.45,131.34,21.77801137]
[1744566530769,2.0337,131.44,131.35,45.25331243]
[1744566530977,2.0337,131.44,131.38,7.67030385]
[1744566530978,0.04861938,131.41,131.38,7.67030385]
[1744566531977,0.04861938,131.41,131.39,7.6129]
[1744566533581,0.04861938,131.41,131.38,0.05710385]
[1744566534188,7.66051938,131.41,131.38,0.05710385]
[1744566535084,7.6125,131.4,131.38,0.05710385]